[Event "*** SCC Grand Prix: Titled Tuesday Blitz"]
[Site "Chess.com"]
[Date "2020.09.08"]
[Round "2"]
[White "Leonid_Starozhilov"]
[Black "davigator"]
[Result "1-0"]
[WhiteElo "2689"]
[BlackElo "2343"]
[TimeControl "180+1"]
[EndTime "10:18:50 PDT"]
[Termination "Leonid_Starozhilov won by resignation"]

1. e4 {[%clk 0:03:00.9]} 1... c5 {[%clk 0:02:58.6]} 2. Nf3 {[%clk 0:03:01.1]}
2... Nc6 {[%clk 0:02:58.2]} 3. Bb5 {[%clk 0:03:01.1]} 3... g6 {[%clk 0:02:57.5]}
4. O-O {[%clk 0:02:58.7]} 4... Bg7 {[%clk 0:02:56.3]} 5. Nc3 {[%clk 0:02:59.3]}
5... Nh6 {[%clk 0:02:54.4]} 6. Bxc6 {[%clk 0:02:47.6]} 6... dxc6 {[%clk
0:02:53.8]} 7. d3 {[%clk 0:02:41.3]} 7... O-O {[%clk 0:02:52.7]} 8. h3 {[%clk
0:02:39]} 8... b6 {[%clk 0:02:49.9]} 9. a4 {[%clk 0:02:36.4]} 9... a5 {[%clk
0:02:47.8]} 10. Bf4 {[%clk 0:02:32.4]} 10... f5 {[%clk 0:02:47.6]} 11. e5 {[%clk
0:02:24.6]} 11... Nf7 {[%clk 0:02:45.4]} 12. Re1 {[%clk 0:02:23.4]} 12... Be6
{[%clk 0:02:43.5]} 13. Ng5 {[%clk 0:02:17.7]} 13... Nxg5 {[%clk 0:02:42.3]} 14.
Bxg5 {[%clk 0:02:18.6]} 14... h6 {[%clk 0:02:42.9]} 15. Bc1 {[%clk 0:02:10]}
15... g5 {[%clk 0:02:41.9]} 16. Qe2 {[%clk 0:02:09.5]} 16... Qd4 {[%clk
0:02:39.4]} 17. Qe3 {[%clk 0:02:03.4]} 17... Rad8 {[%clk 0:02:35.4]} 18. Bd2
{[%clk 0:01:53.6]} 18... Rd7 {[%clk 0:02:20.2]} 19. b3 {[%clk 0:01:40.6]} 19...
Rdd8 {[%clk 0:02:11]} 20. Qf3 {[%clk 0:01:29.7]} 20... Qd7 {[%clk 0:02:07.9]}
21. h4 {[%clk 0:01:21.8]} 21... f4 {[%clk 0:01:48.9]} 22. hxg5 {[%clk
0:01:11.3]} 22... hxg5 {[%clk 0:01:41]} 23. Qh5 {[%clk 0:01:04.4]} 23... Rf5
{[%clk 0:01:36.2]} 24. Ne4 {[%clk 0:01:02.5]} 24... Bf7 {[%clk 0:01:31.7]} 25.
Qg4 {[%clk 0:00:51.1]} 25... Rxe5 {[%clk 0:01:31.9]} 26. Qxd7 {[%clk 0:00:49.7]}
26... Rxd7 {[%clk 0:01:31.6]} 27. Rad1 {[%clk 0:00:42.9]} 27... Rf5 {[%clk
0:01:29]} 28. Bc3 {[%clk 0:00:31]} 28... Bh5 {[%clk 0:01:25.1]} 29. f3 {[%clk
0:00:29.1]} 29... g4 {[%clk 0:01:21.9]} 30. Kf2 {[%clk 0:00:26.9]} 30... e5
{[%clk 0:01:02.4]} 31. Rh1 {[%clk 0:00:24.8]} 31... Kf7 {[%clk 0:00:52.1]} 32.
Ke2 {[%clk 0:00:24.2]} 32... Kg6 {[%clk 0:00:43.8]} 33. Rh2 {[%clk 0:00:22.3]}
33... Bf8 {[%clk 0:00:36.8]} 34. Rdh1 {[%clk 0:00:19.1]} 34... g3 {[%clk
0:00:26.3]} 35. Rxh5 {[%clk 0:00:16.4]} 35... Rxh5 {[%clk 0:00:23.5]} 36. Rxh5
{[%clk 0:00:17.3]} 36... Kxh5 {[%clk 0:00:21]} 37. Nf6+ {[%clk 0:00:17.3]} 37...
Kg6 {[%clk 0:00:20.1]} 38. Nxd7 {[%clk 0:00:18.2]} 38... Bd6 {[%clk 0:00:19.9]}
39. Nxe5+ {[%clk 0:00:18.3]} 39... Kf5 {[%clk 0:00:18.3]} 40. Nc4 {[%clk
0:00:18.4]} 40... Bc7 {[%clk 0:00:17.9]} 41. Bd2 {[%clk 0:00:16.7]} 41... Ke6
{[%clk 0:00:16.9]} 42. Nb2 {[%clk 0:00:15.2]} 42... b5 {[%clk 0:00:15.7]} 43.
Nd1 {[%clk 0:00:14.1]} 43... Kd5 {[%clk 0:00:15.3]} 44. Nc3+ {[%clk 0:00:13.9]}
44... Kd4 {[%clk 0:00:13.5]} 45. axb5 {[%clk 0:00:13.6]} 45... a4 {[%clk
0:00:13.4]} 46. bxa4 {[%clk 0:00:11.5]} 46... Ba5 {[%clk 0:00:13]} 47. bxc6
{[%clk 0:00:10.8]} 47... Ke5 {[%clk 0:00:11.2]} 48. Ne4 {[%clk 0:00:10.3]} 48...
Bc7 {[%clk 0:00:08.1]} 49. Bc3+ {[%clk 0:00:10.6]} 49... Kd5 {[%clk 0:00:08]}
50. Bd2 {[%clk 0:00:08.4]} 50... Kxc6 {[%clk 0:00:07.9]} 51. c4 {[%clk
0:00:08.8]} 51... Be5 {[%clk 0:00:05]} 52. Ng5 {[%clk 0:00:08.5]} 52... Kd6
{[%clk 0:00:03.4]} 53. Nh3 {[%clk 0:00:09.4]} 53... Ke6 {[%clk 0:00:03.1]} 54.
Bxf4 {[%clk 0:00:10.1]} 54... Kf5 {[%clk 0:00:03.9]} 55. Bxe5 {[%clk 0:00:10.3]}
55... Kxe5 {[%clk 0:00:04.5]} 56. Ke3 {[%clk 0:00:11.2]} 1-0

[Event "*** SCC Grand Prix: Titled Tuesday Blitz"]
[Site "Chess.com"]
[Date "2020.09.08"]
[Round "2"]
[White "RestartingChess"]
[Black "NotFischer"]
[Result "1-0"]
[WhiteElo "2436"]
[BlackElo "2213"]
[TimeControl "180+1"]
[EndTime "10:18:56 PDT"]
[Termination "RestartingChess won by resignation"]

1. e4 {[%clk 0:03:00.9]} 1... d5 {[%clk 0:02:59.8]} 2. exd5 {[%clk 0:02:59.7]}
2... Nf6 {[%clk 0:03:00.1]} 3. d4 {[%clk 0:02:59.5]} 3... Bg4 {[%clk 0:03:00.2]}
4. Be2 {[%clk 0:02:58.1]} 4... Bxe2 {[%clk 0:03:00.3]} 5. Nxe2 {[%clk
0:02:58.4]} 5... Qxd5 {[%clk 0:03:00.9]} 6. O-O {[%clk 0:02:58.1]} 6... Nc6
{[%clk 0:03:01.1]} 7. Be3 {[%clk 0:02:52.3]} 7... O-O-O {[%clk 0:03:00.5]} 8. c3
{[%clk 0:02:49.1]} 8... Qh5 {[%clk 0:03:00.3]} 9. Ng3 {[%clk 0:02:45]} 9... Qxd1
{[%clk 0:02:59.2]} 10. Rxd1 {[%clk 0:02:45.9]} 10... e5 {[%clk 0:02:59]} 11. Na3
{[%clk 0:02:39.7]} 11... Bxa3 {[%clk 0:02:57.9]} 12. bxa3 {[%clk 0:02:40.6]}
12... exd4 {[%clk 0:02:58.1]} 13. cxd4 {[%clk 0:02:37.9]} 13... Nd5 {[%clk
0:02:57.8]} 14. Nf5 {[%clk 0:02:26.1]} 14... g6 {[%clk 0:02:55]} 15. Nh6 {[%clk
0:02:26.5]} 15... Rhf8 {[%clk 0:02:53.6]} 16. Rac1 {[%clk 0:02:25]} 16... f5
{[%clk 0:02:49.4]} 17. Bg5 {[%clk 0:02:24.2]} 17... Rd7 {[%clk 0:02:48.9]} 18.
h4 {[%clk 0:02:22.3]} 18... Nd8 {[%clk 0:02:46.2]} 19. Re1 {[%clk 0:02:17.6]}
19... Nf6 {[%clk 0:02:07]} 20. Rc4 {[%clk 0:01:51.8]} 20... Ne4 {[%clk
0:02:06.8]} 21. f3 {[%clk 0:01:49.6]} 21... Nxg5 {[%clk 0:01:51]} 22. hxg5
{[%clk 0:01:50.5]} 22... c6 {[%clk 0:01:35.1]} 23. Kf2 {[%clk 0:01:47.5]} 23...
Kc7 {[%clk 0:01:34.7]} 24. Re5 {[%clk 0:01:44.1]} 24... Kd6 {[%clk 0:01:30.8]}
25. f4 {[%clk 0:01:37.2]} 25... Re7 {[%clk 0:01:23.2]} 26. Rxe7 {[%clk
0:01:33.8]} 26... Kxe7 {[%clk 0:01:22.9]} 27. d5 {[%clk 0:01:34.4]} 27... Re8
{[%clk 0:01:17.8]} 28. dxc6 {[%clk 0:01:24.3]} 28... Nxc6 {[%clk 0:01:17.7]} 29.
Rc3 {[%clk 0:01:24]} 29... Kf8 {[%clk 0:01:13.4]} 30. g4 {[%clk 0:01:20.6]}
30... Re4 {[%clk 0:01:08.5]} 31. gxf5 {[%clk 0:01:17]} 31... gxf5 {[%clk
0:01:00.5]} 32. Kg3 {[%clk 0:01:17]} 32... Ne7 {[%clk 0:00:55.7]} 33. Rc7 {[%clk
0:01:12.7]} 33... Re3+ {[%clk 0:00:47]} 34. Kf2 {[%clk 0:01:13.1]} 34... Rxa3
{[%clk 0:00:47.7]} 35. Rxb7 {[%clk 0:01:13.5]} 35... Rxa2+ {[%clk 0:00:48.3]}
36. Ke3 {[%clk 0:01:14.2]} 36... a5 {[%clk 0:00:48.5]} 37. Kd4 {[%clk
0:01:13.8]} 37... Re2 {[%clk 0:00:46.4]} 38. Kc5 {[%clk 0:01:04.7]} 38... a4
{[%clk 0:00:44.7]} 39. Ra7 {[%clk 0:00:58.8]} 39... Re4 {[%clk 0:00:43.7]} 40.
Ra8+ {[%clk 0:00:54.4]} 40... Kg7 {[%clk 0:00:42.8]} 41. Kd6 {[%clk 0:00:55]}
41... Kg6 {[%clk 0:00:27.3]} 42. Re8 {[%clk 0:00:47.3]} 42... a3 {[%clk
0:00:22.8]} 43. Ra8 {[%clk 0:00:45]} 43... Re3 {[%clk 0:00:22.3]} 44. Ra6 {[%clk
0:00:35.5]} 44... Kh5 {[%clk 0:00:20]} 45. Kc5 {[%clk 0:00:28]} 45... Re4 {[%clk
0:00:11.4]} 46. Rxa3 {[%clk 0:00:23.6]} 46... Rxf4 {[%clk 0:00:11.6]} 47. Ra7
{[%clk 0:00:21]} 47... Re4 {[%clk 0:00:10.2]} 48. Nf7 {[%clk 0:00:20.5]} 48...
Kg6 {[%clk 0:00:09.3]} 49. Nd6 {[%clk 0:00:19]} 49... Re5+ {[%clk 0:00:09.7]}
50. Kc4 {[%clk 0:00:17.9]} 50... Kxg5 {[%clk 0:00:09.7]} 51. Nf7+ {[%clk
0:00:17.9]} 51... Kf6 {[%clk 0:00:09.5]} 52. Nxe5 {[%clk 0:00:18.8]} 52... Kxe5
{[%clk 0:00:09.6]} 53. Rxe7+ {[%clk 0:00:19]} 53... Kf6 {[%clk 0:00:10.2]} 54.
Rxh7 {[%clk 0:00:19.9]} 54... Kg5 {[%clk 0:00:10.4]} 55. Kd3 {[%clk 0:00:19.5]}
55... Kg4 {[%clk 0:00:11.3]} 56. Ke2 {[%clk 0:00:19.7]} 56... Kg3 {[%clk
0:00:12.2]} 57. Kf1 {[%clk 0:00:19.2]} 57... f4 {[%clk 0:00:13.1]} 58. Ra7
{[%clk 0:00:18.8]} 58... Kf3 {[%clk 0:00:14]} 59. Ra3+ {[%clk 0:00:19.2]} 59...
Ke4 {[%clk 0:00:14.4]} 60. Kf2 {[%clk 0:00:19.8]} 1-0

[Event "*** SCC Grand Prix: Titled Tuesday Blitz"]
[Site "Chess.com"]
[Date "2020.09.08"]
[Round "2"]
[White "mishanick"]
[Black "Iskusnyh"]
[Result "1-0"]
[WhiteElo "3004"]
[BlackElo "2598"]
[TimeControl "180+1"]
[EndTime "10:18:58 PDT"]
[Termination "mishanick won on time"]

1. d4 {[%clk 0:03:00.8]} 1... d5 {[%clk 0:02:59.5]} 2. c4 {[%clk 0:03:01.1]}
2... c6 {[%clk 0:02:59.3]} 3. Nf3 {[%clk 0:03:01.7]} 3... Nf6 {[%clk 0:02:59.3]}
4. Nc3 {[%clk 0:03:02.3]} 4... a6 {[%clk 0:02:58.9]} 5. c5 {[%clk 0:03:00.9]}
5... Bf5 {[%clk 0:02:53.3]} 6. Qb3 {[%clk 0:03:00.3]} 6... Qc8 {[%clk
0:02:50.8]} 7. Bf4 {[%clk 0:02:59.9]} 7... Nbd7 {[%clk 0:02:44.5]} 8. h3 {[%clk
0:03:00]} 8... e6 {[%clk 0:02:37.4]} 9. e3 {[%clk 0:03:00]} 9... Be7 {[%clk
0:02:36.9]} 10. Be2 {[%clk 0:03:00.6]} 10... Bd8 {[%clk 0:02:34.3]} 11. Qa3
{[%clk 0:02:56.9]} 11... Bc7 {[%clk 0:02:29]} 12. Bd6 {[%clk 0:02:56.6]} 12...
Bxd6 {[%clk 0:02:04.6]} 13. cxd6 {[%clk 0:02:57.5]} 13... O-O {[%clk 0:02:03.5]}
14. Ne5 {[%clk 0:02:57.9]} 14... Nxe5 {[%clk 0:01:47.7]} 15. dxe5 {[%clk
0:02:58.8]} 15... Nd7 {[%clk 0:01:47.6]} 16. f4 {[%clk 0:02:47.2]} 16... f6
{[%clk 0:01:47]} 17. g4 {[%clk 0:02:21.6]} 17... Bg6 {[%clk 0:01:39.6]} 18. f5
{[%clk 0:01:59.5]} 18... Bf7 {[%clk 0:01:39.1]} 19. exf6 {[%clk 0:01:57]} 19...
Nxf6 {[%clk 0:01:37.2]} 20. Rf1 {[%clk 0:01:16.4]} 20... exf5 {[%clk 0:01:30.3]}
21. gxf5 {[%clk 0:01:16.7]} 21... Qe8 {[%clk 0:01:26.5]} 22. Na4 {[%clk
0:01:12.4]} 22... Qe5 {[%clk 0:01:21.2]} 23. Nc5 {[%clk 0:00:51.3]} 23... Qxd6
{[%clk 0:01:02.8]} 24. Qc3 {[%clk 0:00:50.4]} 24... Qg3+ {[%clk 0:00:58.1]} 25.
Kd1 {[%clk 0:00:48.1]} 25... Rfe8 {[%clk 0:00:51.7]} 26. Kd2 {[%clk 0:00:47.1]}
26... Qd6 {[%clk 0:00:18.7]} 27. Bd3 {[%clk 0:00:20.5]} 27... Re5 {[%clk
0:00:15.1]} 28. Rg1 {[%clk 0:00:20]} 28... Rae8 {[%clk 0:00:14.9]} 29. Rg3
{[%clk 0:00:16.9]} 29... Ne4+ {[%clk 0:00:14.4]} 30. Bxe4 {[%clk 0:00:14.1]}
30... dxe4+ {[%clk 0:00:14.2]} 31. Ke1 {[%clk 0:00:12.7]} 31... Qxc5 {[%clk
0:00:14.1]} 32. Qd2 {[%clk 0:00:13.2]} 32... Rd5 {[%clk 0:00:12.6]} 33. Qg2
{[%clk 0:00:13.5]} 33... Qf8 {[%clk 0:00:10.4]} 34. Rg5 {[%clk 0:00:12.9]} 34...
Red8 {[%clk 0:00:09.9]} 35. Kf1 {[%clk 0:00:12.5]} 35... Rd1+ {[%clk 0:00:09]}
36. Rxd1 {[%clk 0:00:12.7]} 36... Rxd1+ {[%clk 0:00:08.7]} 37. Ke2 {[%clk
0:00:13.6]} 37... Rb1 {[%clk 0:00:07.1]} 38. Qg3 {[%clk 0:00:14.1]} 38... Rxb2+
{[%clk 0:00:06.5]} 39. Kf1 {[%clk 0:00:14.7]} 39... Bc4+ {[%clk 0:00:05.3]} 40.
Kg1 {[%clk 0:00:15]} 40... Rb1+ {[%clk 0:00:05.4]} 41. Kh2 {[%clk 0:00:15.1]}
41... Rb2+ {[%clk 0:00:05.5]} 42. Kg1 {[%clk 0:00:15.6]} 42... Rd2 {[%clk
0:00:05.4]} 43. Qe5 {[%clk 0:00:13.2]} 43... Rd1+ {[%clk 0:00:05]} 44. Kh2
{[%clk 0:00:13.2]} 44... Rd2+ {[%clk 0:00:05.1]} 45. Kg1 {[%clk 0:00:13.2]}
45... Rd7 {[%clk 0:00:04.9]} 46. f6 {[%clk 0:00:12.1]} 46... g6 {[%clk
0:00:04.6]} 47. h4 {[%clk 0:00:10.8]} 47... Bf7 {[%clk 0:00:03.8]} 48. h5 {[%clk
0:00:10.9]} 48... Rd5 {[%clk 0:00:03.9]} 49. Qf4 {[%clk 0:00:09]} 49... Rxg5+
{[%clk 0:00:03.6]} 50. Qxg5 {[%clk 0:00:09.9]} 50... Qd6 {[%clk 0:00:03.4]} 51.
Kg2 {[%clk 0:00:07.8]} 51... c5 {[%clk 0:00:02.2]} 52. h6 {[%clk 0:00:06.2]}
52... c4 {[%clk 0:00:01.7]} 53. Qg4 {[%clk 0:00:06.6]} 53... Qe6 {[%clk
0:00:01.3]} 54. Qf4 {[%clk 0:00:06.6]} 1-0

[Event "*** SCC Grand Prix: Titled Tuesday Blitz"]
[Site "Chess.com"]
[Date "2020.09.08"]
[Round "2"]
[White "GM_dmitrij"]
[Black "el-roedor"]
[Result "1-0"]
[WhiteElo "2922"]
[BlackElo "2570"]
[TimeControl "180+1"]
[EndTime "10:18:59 PDT"]
[Termination "GM_dmitrij won on time"]

1. e4 {[%clk 0:03:00.9]} 1... c5 {[%clk 0:02:59.4]} 2. Nf3 {[%clk 0:03:01.1]}
2... Nc6 {[%clk 0:02:59.7]} 3. Bb5 {[%clk 0:03:01.1]} 3... e6 {[%clk 0:02:59.3]}
4. O-O {[%clk 0:03:01.1]} 4... Nge7 {[%clk 0:02:58.9]} 5. Re1 {[%clk 0:03:01.7]}
5... Nd4 {[%clk 0:02:58.6]} 6. Nxd4 {[%clk 0:02:57]} 6... cxd4 {[%clk
0:02:58.3]} 7. c3 {[%clk 0:02:57.9]} 7... a6 {[%clk 0:02:58.2]} 8. Bf1 {[%clk
0:02:55]} 8... Nc6 {[%clk 0:02:57.7]} 9. b4 {[%clk 0:02:55.6]} 9... Be7 {[%clk
0:02:49.5]} 10. a4 {[%clk 0:02:53.1]} 10... O-O {[%clk 0:02:35.8]} 11. Na3
{[%clk 0:02:45.2]} 11... dxc3 {[%clk 0:02:28.2]} 12. dxc3 {[%clk 0:02:46.1]}
12... Bf6 {[%clk 0:02:28]} 13. Bb2 {[%clk 0:02:40.8]} 13... d5 {[%clk
0:02:22.6]} 14. exd5 {[%clk 0:02:38.6]} 14... exd5 {[%clk 0:02:22.3]} 15. Qd2
{[%clk 0:02:22.8]} 15... Be6 {[%clk 0:02:17.3]} 16. Nc2 {[%clk 0:02:19]} 16...
Rc8 {[%clk 0:02:10]} 17. Rad1 {[%clk 0:02:17.3]} 17... Qb6 {[%clk 0:01:50.5]}
18. a5 {[%clk 0:01:58.5]} 18... Qc7 {[%clk 0:01:47.5]} 19. Nd4 {[%clk
0:01:47.2]} 19... Nxd4 {[%clk 0:01:43.9]} 20. cxd4 {[%clk 0:01:48.1]} 20... Qc2
{[%clk 0:01:33.6]} 21. Bd3 {[%clk 0:01:36.5]} 21... Qxd2 {[%clk 0:01:33.4]} 22.
Rxd2 {[%clk 0:01:37.4]} 22... Rc7 {[%clk 0:01:22.3]} 23. Rc2 {[%clk 0:01:23.4]}
23... Rfc8 {[%clk 0:01:19.2]} 24. Rxc7 {[%clk 0:01:13]} 24... Rxc7 {[%clk
0:01:19.3]} 25. g3 {[%clk 0:01:13.9]} 25... g6 {[%clk 0:01:14.1]} 26. f4 {[%clk
0:01:10.7]} 26... h5 {[%clk 0:01:10.9]} 27. Bxg6 {[%clk 0:01:03.2]} 27... fxg6
{[%clk 0:00:57]} 28. Rxe6 {[%clk 0:01:02.5]} 28... Kf7 {[%clk 0:00:57.1]} 29.
Re2 {[%clk 0:00:35.6]} 29... Rc4 {[%clk 0:00:53.7]} 30. Kf2 {[%clk 0:00:22.8]}
30... Rxb4 {[%clk 0:00:52.3]} 31. Ke1 {[%clk 0:00:14.2]} 31... Rc4 {[%clk
0:00:19.9]} 32. Rd2 {[%clk 0:00:09.7]} 32... Ra4 {[%clk 0:00:17.9]} 33. Rc2
{[%clk 0:00:09.3]} 33... Ra2 {[%clk 0:00:12.7]} 34. Kd2 {[%clk 0:00:08.1]} 34...
Rxa5 {[%clk 0:00:10.6]} 35. Rc7+ {[%clk 0:00:07.7]} 35... Ke6 {[%clk 0:00:11]}
36. Rxb7 {[%clk 0:00:08.6]} 36... Rb5 {[%clk 0:00:11.2]} 37. Rxb5 {[%clk
0:00:08.4]} 37... axb5 {[%clk 0:00:11.9]} 38. Ke3 {[%clk 0:00:08.7]} 38... Be7
{[%clk 0:00:11]} 39. h3 {[%clk 0:00:08.6]} 39... Bb4 {[%clk 0:00:10.9]} 40. g4
{[%clk 0:00:08.6]} 40... hxg4 {[%clk 0:00:10.3]} 41. hxg4 {[%clk 0:00:09.5]}
41... Be1 {[%clk 0:00:09.8]} 42. Kd3 {[%clk 0:00:09.6]} 42... Bg3 {[%clk
0:00:09.2]} 43. Bc1 {[%clk 0:00:09.8]} 43... Bh2 {[%clk 0:00:09]} 44. Be3 {[%clk
0:00:08.9]} 44... Bg3 {[%clk 0:00:08.6]} 45. Kc3 {[%clk 0:00:09.4]} 45... Be1+
{[%clk 0:00:08.4]} 46. Bd2 {[%clk 0:00:07.3]} 46... Bf2 {[%clk 0:00:06.9]} 47.
Kd3 {[%clk 0:00:06.2]} 47... Bg1 {[%clk 0:00:05]} 48. Be3 {[%clk 0:00:06.5]}
48... Bh2 {[%clk 0:00:05]} 49. Kc3 {[%clk 0:00:07]} 49... Bg3 {[%clk 0:00:04.7]}
50. Kb4 {[%clk 0:00:07.3]} 50... Kd6 {[%clk 0:00:04]} 51. Kxb5 {[%clk
0:00:07.6]} 51... Ke6 {[%clk 0:00:04.5]} 52. Kc6 {[%clk 0:00:08]} 52... Bh2
{[%clk 0:00:04.4]} 53. Kc7 {[%clk 0:00:07.6]} 53... Bg3 {[%clk 0:00:03.8]} 54.
Kd8 {[%clk 0:00:08]} 54... Bh4+ {[%clk 0:00:03.6]} 55. Ke8 {[%clk 0:00:08]}
55... Bf6 {[%clk 0:00:03.9]} 56. Kf8 {[%clk 0:00:08.1]} 56... Be7+ {[%clk
0:00:01.9]} 57. Kg7 {[%clk 0:00:08.3]} 57... g5 {[%clk 0:00:02.1]} 58. f5+
{[%clk 0:00:08.8]} 58... Kd7 {[%clk 0:00:01.9]} 59. f6 {[%clk 0:00:09]} 1-0

[Event "*** SCC Grand Prix: Titled Tuesday Blitz"]
[Site "Chess.com"]
[Date "2020.09.08"]
[Round "2"]
[White "omer1997"]
[Black "Reader777"]
[Result "1/2-1/2"]
[WhiteElo "2381"]
[BlackElo "2660"]
[TimeControl "180+1"]
[EndTime "10:18:59 PDT"]
[Termination "Game drawn - insufficient material"]

1. e4 {[%clk 0:03:00.9]} 1... c5 {[%clk 0:02:59.7]} 2. Nf3 {[%clk 0:02:58.5]}
2... d6 {[%clk 0:02:59.8]} 3. c3 {[%clk 0:02:57.9]} 3... Nf6 {[%clk 0:02:59.4]}
4. Bd3 {[%clk 0:02:57.3]} 4... g6 {[%clk 0:02:58.1]} 5. O-O {[%clk 0:02:57.4]}
5... Bg7 {[%clk 0:02:57.8]} 6. Bc2 {[%clk 0:02:58.3]} 6... Bg4 {[%clk
0:02:57.3]} 7. h3 {[%clk 0:02:56.5]} 7... Bxf3 {[%clk 0:02:57.1]} 8. Qxf3 {[%clk
0:02:57.4]} 8... Nc6 {[%clk 0:02:57]} 9. d3 {[%clk 0:02:58]} 9... O-O {[%clk
0:02:56.9]} 10. Qe2 {[%clk 0:02:58.5]} 10... b5 {[%clk 0:02:55.6]} 11. Nd2
{[%clk 0:02:58.9]} 11... b4 {[%clk 0:02:55.6]} 12. Nc4 {[%clk 0:02:52.6]} 12...
Nd7 {[%clk 0:02:54.3]} 13. Bd2 {[%clk 0:02:52.4]} 13... bxc3 {[%clk 0:02:50.5]}
14. bxc3 {[%clk 0:02:53.3]} 14... Rb8 {[%clk 0:02:49.6]} 15. Rab1 {[%clk
0:02:53.3]} 15... Nb6 {[%clk 0:02:46.5]} 16. Bb3 {[%clk 0:02:46.6]} 16... Nxc4
{[%clk 0:02:43.4]} 17. Bxc4 {[%clk 0:02:47.5]} 17... Na5 {[%clk 0:02:40]} 18.
Bb3 {[%clk 0:02:34.6]} 18... Qc7 {[%clk 0:02:30.1]} 19. Bc2 {[%clk 0:02:31.6]}
19... Nc6 {[%clk 0:02:16]} 20. Rb3 {[%clk 0:02:10]} 20... Rxb3 {[%clk
0:01:52.5]} 21. axb3 {[%clk 0:02:10.9]} 21... Rb8 {[%clk 0:01:48.7]} 22. Qd1
{[%clk 0:01:47.3]} 22... h5 {[%clk 0:01:18.6]} 23. Qa1 {[%clk 0:01:44.5]} 23...
Qa5 {[%clk 0:01:16.4]} 24. Qxa5 {[%clk 0:01:31.8]} 24... Nxa5 {[%clk 0:01:16.3]}
25. Ra1 {[%clk 0:01:31.1]} 25... Nc6 {[%clk 0:01:06]} 26. Ra6 {[%clk 0:01:27.3]}
26... Rb6 {[%clk 0:01:05.1]} 27. Rxb6 {[%clk 0:01:27]} 27... axb6 {[%clk
0:01:05.8]} 28. f4 {[%clk 0:01:27.1]} 28... e6 {[%clk 0:01:01.3]} 29. Kf2 {[%clk
0:01:13.9]} 29... b5 {[%clk 0:01:01.3]} 30. Bd1 {[%clk 0:00:47.2]} 30... Kf8
{[%clk 0:00:58.4]} 31. g4 {[%clk 0:00:41]} 31... hxg4 {[%clk 0:00:56.1]} 32.
hxg4 {[%clk 0:00:41.9]} 32... b4 {[%clk 0:00:55.7]} 33. cxb4 {[%clk 0:00:35.2]}
33... cxb4 {[%clk 0:00:54.6]} 34. Be3 {[%clk 0:00:35.1]} 34... Bd4 {[%clk
0:00:53.3]} 35. g5 {[%clk 0:00:21.1]} 35... Ke7 {[%clk 0:00:48.2]} 36. Bg4
{[%clk 0:00:16]} 36... Bxe3+ {[%clk 0:00:23.2]} 37. Kxe3 {[%clk 0:00:16.9]}
37... e5 {[%clk 0:00:23.9]} 38. f5 {[%clk 0:00:15.5]} 38... gxf5 {[%clk
0:00:15.6]} 39. exf5 {[%clk 0:00:11.3]} 39... Nd4 {[%clk 0:00:15.9]} 40. f6+
{[%clk 0:00:10.6]} 40... Ke8 {[%clk 0:00:15.3]} 41. Bd1 {[%clk 0:00:05.1]} 41...
Ne6 {[%clk 0:00:15.4]} 42. Ke4 {[%clk 0:00:05.8]} 42... Nxg5+ {[%clk 0:00:15.2]}
43. Kd5 {[%clk 0:00:06.5]} 43... Kd7 {[%clk 0:00:15.6]} 44. Bg4+ {[%clk
0:00:04]} 44... Kc7 {[%clk 0:00:15.4]} 45. Kc4 {[%clk 0:00:04.9]} 45... Nh7
{[%clk 0:00:06.8]} 46. Bh5 {[%clk 0:00:05.4]} 46... Nxf6 {[%clk 0:00:07.2]} 47.
Bxf7 {[%clk 0:00:05.8]} 47... Kc6 {[%clk 0:00:06.9]} 48. Kxb4 {[%clk 0:00:05]}
48... d5 {[%clk 0:00:07]} 49. Be6 {[%clk 0:00:03.4]} 49... Ne8 {[%clk
0:00:06.4]} 50. Bf5 {[%clk 0:00:01.8]} 50... Nd6 {[%clk 0:00:06.6]} 51. Bg6
{[%clk 0:00:02.6]} 51... Nc8 {[%clk 0:00:06.5]} 52. Kc3 {[%clk 0:00:03.5]} 52...
Na7 {[%clk 0:00:05.7]} 53. Be8+ {[%clk 0:00:02.5]} 53... Kc5 {[%clk 0:00:05.6]}
54. d4+ {[%clk 0:00:03.3]} 54... exd4+ {[%clk 0:00:05.5]} 55. Kd3 {[%clk
0:00:04]} 55... Nc8 {[%clk 0:00:02.7]} 56. b4+ {[%clk 0:00:04.4]} 56... Kxb4
{[%clk 0:00:03.1]} 57. Kxd4 {[%clk 0:00:05.3]} 57... Nb6 {[%clk 0:00:03.9]} 58.
Bf7 {[%clk 0:00:05.2]} 58... Kb3 {[%clk 0:00:04.5]} 59. Bxd5+ {[%clk 0:00:06]}
1/2-1/2